bitfinex-derivatives/quotes_ETHF0:USTF0_20250205
["timestamp","ask_amount","ask_price","bid_price","bid_amount"]
[1738735230628,8.20397484,2781.3,2781.2,0.0053953]
[1738735230826,3.26154338,2781.3,2781.2,0.0053953]
[1738735231030,3.20397484,2781.3,2781.2,0.0053953]
[1738735231230,3.26154254,2781.3,2781.2,0.0053953]
[1738735231732,3.20397484,2781.3,2781.2,0.0053953]
[1738735232237,3.26154176,2781.3,2781.2,0.0053953]
[1738735232431,3.20397484,2781.3,2781.2,0.0053953]
[1738735232832,3.33471717,2781.5,2781.2,0.0053953]
[1738735233434,3.2078,2781.3,2781.2,0.0053953]
[1738735234328,6.54251717,2781.5,2781.2,0.0053953]
[1738735234528,3.33471717,2781.5,2781.2,0.0053953]
[1738735234735,0.05756225,2781.4,2781.2,0.0053953]
[1738735234932,0.57517,2781.1,2780.8,0.899]
[1738735235131,3.33471717,2780.9,2780.8,0.899]
[1738735235327,8.29307942,2780.9,2779.5,5.6299]
[1738735235537,3.33471717,2780.3,2779.5,5.6299]
[1738735236336,0.0053953,2780.2,2779.8,3.2078]
[1738735236835,0.0053953,2780.2,2779.7,3.2078]
[1738735237140,0.0053953,2780.2,2780.0,3.2078]
[1738735238034,0.0053953,2780.2,2779.7,3.2078]
[1738735238538,0.0053953,2780.2,2780.0,3.2078]
[1738735239738,0.0053953,2780.2,2780.0,3.4955]
[1738735240341,6.54251717,2781.5,2780.0,8.4955]
[1738735240641,6.54251717,2781.5,2780.8,3.2078]
[1738735240843,7.11760717,2781.5,2780.8,3.2078]
[1738735241033,3.90988717,2781.1,2780.8,3.2078]
[1738735241230,5.02771717,2781.1,2780.8,3.2078]
[1738735241439,5.02771717,2781.1,2779.5,3.5734]
[1738735241440,3.2078,2780.6,2779.5,3.5734]
[1738735241735,6.54251717,2779.6,2779.5,2.09386868]
[1738735241936,3.2078,2779.9,2779.5,1.4391]
[1738735242141,3.2078,2779.6,2778.7,3.2078]
[1738735242342,3.2078,2780.6,2779.3,3.2078]
[1738735242637,3.2078,2780.6,2779.9,3.2078]
[1738735243043,3.2078,2780.0,2779.4,3.3922]
[1738735243240,3.2078,2780.0,2779.9,1.4389]
[1738735244243,3.2078,2780.0,2779.3,3.4956]
[1738735244837,0.0053953,2780.2,2779.3,3.4956]
[1738735245043,3.2131953,2780.2,2779.3,3.4956]
[1738735245240,3.2078,2779.8,2779.3,4.9348]
[1738735245545,3.2078,2779.4,2779.3,1.727]
[1738735246440,6.54251717,2779.4,2779.3,0.2878]
[1738735246640,0.5757,2778.5,2777.6,1.6527]
[1738735246835,3.2078,2779.1,2777.3,3.2078]
[1738735246836,3.2078,2777.9,2777.3,3.2078]
[1738735247046,3.2078,2777.9,2777.5,0.5021]
[1738735247548,3.2078,2777.9,2777.5,1.9422]
[1738735247949,3.2078,2777.9,2777.5,1.7281]
[1738735250345,3.2078,2777.6,2777.5,1.7281]
[1738735251051,0.0053953,2778.0,2777.5,1.7281]
[1738735251052,3.2078,2777.9,2777.5,1.7281]
[1738735251957,3.78364,2777.9,2777.5,1.7281]
[1738735252147,3.2078,2777.9,2777.5,1.7281]
[1738735252648,0.0053953,2778.0,2777.5,9.9359]
[1738735252857,0.0053953,2778.0,2777.5,4.9359]
[1738735253152,3.2078,2777.6,2777.5,1.7281]
[1738735253649,3.2078,2777.6,2777.5,6.7281]
[1738735253849,3.2078,2777.6,2777.5,1.7281]
[1738735254547,3.2078,2777.9,2777.5,6.7281]
[1738735254744,3.2078,2777.6,2777.5,1.7281]
[1738735254947,0.0053953,2778.0,2777.5,6.7281]
[1738735255146,3.2078,2778.6,2777.5,6.7281]
[1738735255347,3.2078,2778.5,2777.5,1.7281]
[1738735255543,3.2078,2777.6,2777.5,1.7281]
[1738735255748,3.2078,2778.3,2777.5,1.7281]
[1738735256153,3.2078,2777.6,2777.5,1.7281]
[1738735256348,6.54251717,2778.2,2777.5,1.7281]
[1738735256545,3.2078,2777.6,2777.5,1.7281]
[1738735256848,6.54791247,2778.2,2777.6,0.0053953]
[1738735257039,3.2078,2777.7,2777.6,0.0053953]
[1738735257244,6.54791247,2778.2,2777.6,0.0053953]
[1738735257444,3.2078,2778.1,2777.6,0.0053953]
[1738735257750,0.0053953,2778.2,2777.6,0.0053953]
[1738735258047,3.2078,2777.9,2777.6,0.0053953]
[1738735258247,3.2078,2778.1,2777.6,0.0053953]
[1738735258549,3.2078,2777.8,2777.6,0.0053953]
[1738735259951,3.2078,2777.8,2777.6,5.0053953]
[1738735260149,3.2078,2778.0,2777.6,5.0053953]
[1738735260345,3.2078,2777.7,2777.6,0.0053953]
[1738735260547,0.5811753,2778.2,2777.6,0.0053953]
[1738735260548,3.2131953,2778.2,2777.6,0.0053953]
[1738735260747,0.0053953,2778.2,2777.6,0.0053953]
[1738735261158,3.2131953,2778.2,2777.6,0.0053953]
[1738735261350,3.2131953,2778.2,2777.6,5.0053953]
[1738735261552,0.0053953,2778.2,2777.6,0.0053953]
[1738735261754,3.2078,2777.7,2777.6,0.0053953]
[1738735262754,3.78367,2777.7,2777.6,0.0053953]
[1738735263060,3.2078,2777.7,2777.6,0.0053953]
[1738735263353,3.78367,2777.7,2777.6,0.0053953]
[1738735263555,3.26545532,2777.7,2777.1,1e-08]
[1738735263750,6.54251717,2777.2,2777.1,1e-08]
[1738735263957,3.2078,2777.2,2777.1,1e-08]
[1738735264257,7.11848717,2777.2,2777.1,1e-08]
[1738735264652,3.2078,2776.6,2774.4,3.63376519]
[1738735264852,1.7699,2774.6,2773.8,3.2078]
[1738735265050,3.2078,2775.0,2774.4,0.0856]
[1738735265248,3.33471717,2775.1,2774.4,0.0856]
[1738735265249,3.2078,2774.9,2774.4,0.0856]
[1738735265558,3.33471717,2775.1,2774.4,0.0856]
[1738735265559,3.2078,2774.5,2774.4,0.0856]
[1738735265759,3.2078,2774.5,2774.4,5.0856]
[1738735266258,3.2078,2774.5,2774.4,0.0856]
[1738735266653,3.78433,2774.5,2774.4,0.0856]
[1738735266855,3.21320531,2775.0,2774.4,5.0856]
[1738735267050,0.00540531,2775.0,2774.4,5.0856]
[1738735267264,3.33471717,2775.9,2774.9,3.2078]
[1738735267447,3.33471717,2775.9,2775.0,1.7221]
[1738735267652,3.33471717,2775.9,2775.2,3.2078]
[1738735268551,3.412,2776.5,2775.3,0.00540531]
[1738735268552,3.91104717,2775.5,2775.3,0.00540531]
[1738735268752,3.2078,2775.7,2775.3,0.00540531]
[1738735269150,0.00540531,2775.8,2775.3,5.00540531]
[1738735269352,3.33471717,2777.1,2775.5,3.2078]
[1738735269556,6.54251717,2777.5,2776.2,3.2078]
[1738735269955,2.29505,2777.8,2775.6,6.44709274]
[1738735269956,6.54251717,2777.1,2776.4,3.2078]
[1738735270156,3.33471717,2777.1,2776.3,1.7439]
[1738735270459,3.2078,2776.8,2775.7,3.2078]
[1738735270755,3.33471717,2776.7,2776.4,0.00540531]
[1738735270953,3.78392,2776.5,2776.4,0.00540531]
[1738735271360,3.2078,2776.5,2775.1,1.7439]
[1738735271559,3.33471717,2776.0,2775.1,1.7439]
[1738735271751,3.33471717,2776.0,2774.8,3.2078]
[1738735271964,3.2078,2775.6,2774.6,1.642]
[1738735272255,3.2078,2775.7,2774.6,1.642]
[1738735272455,3.2078,2775.7,2775.0,3.2078]
[1738735272661,0.00540531,2775.4,2774.8,0.00540531]
[1738735273455,0.58176531,2775.4,2774.8,0.00540531]
[1738735273656,3.2078,2775.2,2774.8,0.00540531]
[1738735274057,6.54251717,2775.2,2774.8,0.00540531]
[1738735274457,3.2078,2774.9,2774.8,0.00540531]
[1738735275457,3.33471717,2775.2,2774.8,0.00540531]
[1738735275458,3.91110717,2775.2,2774.8,0.00540531]
[1738735275659,3.21320531,2775.4,2774.8,0.00540531]
[1738735275860,0.00540531,2775.4,2774.8,0.00540531]
[1738735277062,0.00540531,2775.4,2775.0,3.2078]
[1738735277565,0.00540531,2775.4,2775.0,8.2078]
[1738735278066,3.21320531,2775.4,2774.8,0.00540531]
[1738735281261,3.78955531,2775.4,2774.8,0.00540531]
[1738735281568,3.21320531,2775.4,2774.8,0.00540531]
[1738735281765,0.00540531,2775.4,2775.0,3.2078]
[1738735282562,3.21320531,2775.4,2774.8,0.00540531]
[1738735282876,3.33471717,2775.2,2774.8,0.00540531]
[1738735284166,3.2078,2775.3,2774.8,0.00540531]
[1738735285766,0.00540531,2775.4,2775.0,3.2078]
[1738735285962,0.00540531,2775.4,2775.3,3.2078]
[1738735286368,0.00540531,2775.4,2775.0,3.2078]
[1738735286573,0.00540531,2775.4,2775.2,3.2078]
[1738735286770,0.00540531,2775.4,2774.9,3.2078]
[1738735286970,0.00540531,2775.4,2774.8,0.00540531]
[1738735287173,0.00540531,2775.4,2775.1,3.2078]
[1738735288665,3.2078,2775.2,2774.8,0.00540531]
[1738735289769,3.7842,2775.2,2774.8,0.00540531]
[1738735290077,1.6465,2775.1,2774.8,0.00540531]
[1738735290279,1.6465,2775.1,2774.4,0.0856]
[1738735290572,3.2078,2775.0,2774.4,0.0856]
[1738735291072,7.11901717,2774.7,2773.2,3.2078]
[1738735291273,6.54251717,2774.7,2773.3,3.2078]
[1738735291471,3.33471717,2773.6,2772.7,3.2078]
[1738735291667,3.33471717,2773.6,2773.2,3.2078]
[1738735291874,3.33471717,2773.6,2772.7,3.2078]
[1738735292069,3.33471717,2773.6,2773.0,3.2078]
[1738735292978,0.00540531,2773.7,2773.3,3.2078]
[1738735293171,3.21320531,2773.7,2773.0,3.2078]
[1738735293371,0.00540531,2773.7,2773.0,3.2078]
[1738735294382,0.00540531,2773.7,2773.4,3.2078]
[1738735294671,0.00540531,2773.7,2773.0,3.2078]
[1738735294978,0.00540531,2773.7,2773.4,3.2078]
[1738735295573,0.00540531,2773.7,2773.0,3.2078]
[1738735295972,0.00540531,2773.7,2772.7,3.2078]
[1738735296174,0.00540531,2773.7,2773.5,3.2078]
[1738735297077,0.00540531,2773.7,2773.5,8.2078]
[1738735297683,3.33471717,2775.2,2773.5,8.2078]
[1738735297684,3.2078,2775.4,2773.6,4.78270675]
[1738735297878,3.2078,2775.4,2774.1,3.2078]
[1738735298077,3.78414,2775.4,2774.1,3.2078]
[1738735298376,3.2078,2775.0,2774.4,3.2078]
[1738735298872,3.21320531,2775.0,2774.4,3.21320531]
[1738735299374,0.00540531,2775.0,2774.7,3.2078]
[1738735300477,0.00540531,2775.0,2774.8,3.2078]
[1738735300880,0.00540531,2775.0,2774.4,3.21320531]
[1738735301184,3.21320531,2775.0,2774.4,0.00540531]
[1738735301579,0.5764,2774.9,2774.4,0.00540531]
[1738735301781,3.2078,2774.6,2774.4,0.00540531]
[1738735301976,3.2078,2774.6,2773.8,3.2078]
[1738735302282,4.8441,2774.6,2773.8,3.2078]
[1738735303083,1.6363,2774.6,2773.8,3.2078]
[1738735303383,2.21277,2774.6,2773.8,3.2078]
[1738735303778,0.57648,2774.5,2773.8,3.2078]
[1738735303985,3.2078,2774.3,2773.8,3.2078]
[1738735304181,3.78433,2774.3,2773.8,3.2078]
[1738735304483,3.2078,2773.9,2772.4,3.2078]
[1738735305081,0.00540531,2773.4,2773.1,3.2078]
[1738735305284,0.00540531,2773.4,2773.0,3.2078]
[1738735305880,1.50789199,2773.8,2773.2,3.2078]
[1738735306278,3.2078,2774.5,2773.2,3.2078]
[1738735306484,3.2078,2775.1,2773.8,3.2078]
[1738735307084,3.2078,2775.1,2773.9,3.2078]
[1738735307384,0.00540531,2774.7,2774.2,0.00540531]
[1738735307580,0.00540531,2774.7,2774.3,3.2078]
[1738735308582,0.00540531,2774.7,2774.2,0.00540531]
[1738735308783,0.00540531,2774.7,2774.2,3.21320531]
[1738735309586,3.2078,2774.3,2774.2,0.00540531]
[1738735309789,3.78432,2774.3,2774.2,0.00540531]
[1738735309978,3.2078,2774.3,2773.1,4.8457]
[1738735310289,0.57654,2774.2,2773.1,4.8457]
[1738735310679,3.78432,2774.3,2773.1,4.8457]
[1738735310884,0.57654,2774.2,2773.1,4.8457]
[1738735311588,3.78433,2774.3,2773.1,4.8457]
[1738735311786,3.2078,2774.3,2773.1,4.8457]
[1738735311992,3.78439,2774.0,2773.1,3.2078]
[1738735312288,3.2078,2774.0,2773.1,3.2078]
[1738735313189,3.2078,2774.0,2773.4,3.2078]
[1738735313392,3.2078,2774.0,2773.1,3.2078]
[1738735313582,3.2078,2774.4,2773.1,3.2078]
[1738735313787,3.2078,2774.4,2772.6,3.33471717]
[1738735313788,3.2078,2774.4,2773.4,3.2078]
[1738735314295,3.2078,2774.4,2773.7,3.2078]
[1738735315289,3.2078,2774.4,2773.4,3.2078]
[1738735315892,3.78431,2774.4,2773.4,3.2078]
[1738735316094,3.2078,2774.4,2773.4,3.2078]
[1738735317987,0.00540531,2774.7,2774.3,3.2078]
[1738735318193,3.33471717,2775.7,2774.6,3.2078]
[1738735318491,3.33471717,2775.7,2774.7,3.2078]
[1738735318684,3.2078,2775.3,2774.2,0.00540531]
[1738735318889,6.54251717,2775.3,2774.2,0.00540531]
[1738735319088,6.54251717,2775.3,2774.7,3.2078]
[1738735319394,3.2078,2775.3,2774.7,3.2078]
[1738735319587,0.00540531,2775.3,2774.3,3.78431]
[1738735319894,0.00540531,2775.3,2774.5,3.2078]
[1738735320093,0.00540531,2775.3,2775.2,3.2078]
[1738735320401,0.00540531,2775.3,2774.9,3.2078]
[1738735320897,0.00540531,2775.3,2775.2,3.2078]
[1738735321991,0.00540531,2775.3,2774.5,1.5656]
[1738735322187,3.2078,2775.2,2774.2,3.21320531]
[1738735322393,3.33471717,2774.9,2774.2,3.21320531]
[1738735322593,3.2078,2774.7,2774.2,3.21320531]
[1738735322896,3.2078,2774.3,2773.2,3.2078]
[1738735323492,0.57654,2774.2,2773.2,3.2078]
[1738735323691,3.2078,2774.0,2773.2,3.2078]
[1738735324398,0.00540531,2773.9,2773.2,3.2078]
[1738735326892,6.54251717,2773.7,2772.7,3.2538]
[1738735327090,0.00540531,2773.9,2773.3,3.2078]
[1738735330699,3.2078,2773.8,2773.0,3.2078]
[1738735331103,3.2078,2773.5,2772.7,1.6407]
[1738735331305,3.2078,2773.5,2772.8,3.2078]
[1738735331501,3.33471717,2773.7,2772.8,3.2078]
[1738735332003,3.2078,2773.5,2772.8,3.2078]
[1738735332904,3.91135717,2773.7,2772.8,3.2078]
[1738735333407,3.2078,2773.8,2772.8,3.2078]
[1738735334206,3.91136717,2773.7,2772.8,3.2078]
[1738735334408,3.33471717,2773.7,2772.8,3.2078]
[1738735334607,3.2078,2773.4,2772.5,3.2078]
[1738735334803,3.2078,2773.1,2772.5,3.2078]
[1738735335413,3.2078,2773.1,2772.2,3.2078]
[1738735335701,3.2078,2773.1,2772.0,1.5606]
[1738735335909,3.2078,2773.1,2772.1,3.2078]
[1738735336209,3.2078,2773.1,2772.0,1.5606]
[1738735336404,3.2078,2773.1,2772.1,3.2078]
[1738735336908,3.2078,2773.1,2772.4,3.2078]
[1738735339406,4.90521717,2773.3,2772.4,3.2078]
[1738735339602,3.2078,2773.2,2772.4,3.2078]
[1738735339804,4.90521717,2773.3,2772.4,3.2078]
[1738735340311,3.2078,2772.9,2772.4,3.2078]
[1738735340508,3.2078,2772.9,2772.4,4.6505]
[1738735340709,6.28583565,2772.9,2772.4,4.6505]
[1738735341498,6.28583565,2772.9,2772.4,3.2078]
[1738735342009,6.28583565,2772.9,2772.4,3.982]
[1738735342511,3.2078,2772.9,2772.4,4.2705]
[1738735342903,3.2078,2773.1,2772.4,4.2705]
[1738735343302,3.07803565,2772.9,2772.4,4.2705]
[1738735343905,3.07803565,2772.6,2772.4,1.0627]
[1738735344604,3.07803565,2772.9,2772.4,1.299]
[1738735345207,3.2078,2773.1,2772.4,1.299]
[1738735347213,3.2078,2773.1,2772.4,1.5875]
[1738735347615,3.2078,2773.1,2772.4,3.0302]
[1738735348202,3.07803565,2773.2,2772.4,3.0302]
[1738735348610,3.2078,2773.1,2772.4,3.0302]
[1738735348812,3.2078,2772.8,2772.4,3.0302]
[1738735349013,3.2078,2772.8,2772.4,1.5875]
[1738735350217,6.28583565,2773.8,2772.7,3.2078]
[1738735350511,6.28583565,2773.8,2772.5,1.5902]
[1738735350712,6.28583565,2773.8,2772.6,3.2078]
[1738735350919,6.28583565,2773.5,2772.6,3.2078]
[1738735351418,6.28583565,2773.2,2772.6,3.2078]
[1738735352120,3.2078,2773.2,2772.6,3.2078]
[1738735352819,3.2078,2773.2,2772.5,1.4427]
[1738735353315,3.2078,2772.9,2772.5,1.4427]
[1738735353611,3.2078,2772.9,2772.4,1.5875]
[1738735354008,3.07803565,2773.2,2772.4,1.5875]
[1738735354320,3.2078,2772.9,2772.4,1.5875]
[1738735355212,6.28583565,2773.2,2772.4,4.7953]
[1738735356415,1.6325,2773.4,2772.7,3.2078]
[1738735356917,3.07803565,2773.2,2772.4,4.7953]
[1738735357114,3.2078,2773.1,2772.4,4.7953]
[1738735357317,3.07803565,2772.9,2772.4,4.7953]
[1738735359217,3.07803565,2772.9,2772.4,6.238]
[1738735361315,3.07803565,2772.6,2772.4,3.0302]
[1738735361614,3.07803565,2772.6,2772.4,1.5875]
[1738735362011,3.07803565,2772.9,2772.4,1.5875]
[1738735362814,3.07803565,2772.9,2772.4,3.0302]
[1738735363615,3.2078,2773.0,2772.4,3.0302]
[1738735363815,3.2078,2773.0,2772.4,3.3187]
[1738735364019,3.07803565,2773.2,2772.5,3.2078]
[1738735365315,3.07803565,2772.9,2772.5,3.2078]
[1738735365520,3.07803565,2772.9,2772.5,3.4963]
[1738735365722,3.07803565,2772.9,2772.5,0.2885]
[1738735366525,3.07803565,2772.6,2772.5,0.2885]
[1738735366725,3.07803565,2772.6,2772.5,0.577]
[1738735369330,3.2078,2772.8,2772.5,1.2285]
[1738735371330,3.07803565,2772.6,2772.5,1.2285]
[1738735371518,4.57403565,2772.6,2772.5,1.42642762]
[1738735371725,3.13579656,2772.6,2771.4,3.2078]
[1738735371923,3.07803565,2772.3,2771.6,3.2078]
[1738735372229,0.00540531,2772.2,2771.6,3.2078]
[1738735372525,0.00540531,2772.2,2770.9,4.68253565]
[1738735372526,0.00540531,2772.2,2771.9,3.2078]
[1738735374030,0.00540531,2772.2,2771.9,3.4964]
[1738735374833,3.07803565,2773.2,2771.9,8.4964]
[1738735375031,3.07803565,2773.2,2772.7,3.2078]
[1738735375434,6.28583565,2772.9,2772.1,3.2078]
[1738735375733,3.07803565,2772.5,2772.1,3.2078]
[1738735376731,3.07803565,2772.2,2772.0,0.00540531]
[1738735377636,1.5898,2772.4,2772.0,0.00540531]
[1738735378041,0.00540531,2772.6,2772.0,3.21320531]
[1738735378229,0.00540531,2772.6,2772.3,3.2078]
[1738735378533,0.00540531,2772.6,2772.2,3.2078]
[1738735379342,0.00540531,2772.6,2772.5,3.2078]
[1738735380234,6.28583565,2773.7,2772.5,8.2078]
[1738735380445,1.44118,2774.6,2772.5,8.2078]
[1738735380446,3.07803565,2774.3,2773.5,3.2078]
[1738735380638,3.2078,2774.6,2773.9,3.2078]
[1738735380834,3.07803565,2774.4,2773.9,4.109]
[1738735381131,3.2078,2774.0,2773.9,1.1896]
[1738735382130,0.00540531,2774.2,2773.9,1.1896]
[1738735382331,0.00540531,2774.2,2773.9,4.3974]
[1738735382534,0.00540531,2774.2,2774.1,3.2078]
[1738735382936,0.00540531,2774.2,2773.9,1.1896]
[1738735383333,3.2078,2774.0,2773.9,1.1896]
[1738735383633,4.68893565,2774.1,2773.9,1.1896]
[1738735383832,3.07803565,2774.1,2773.9,1.1896]
[1738735385238,0.00540531,2774.2,2774.0,3.2078]
[1738735385442,0.00540531,2774.2,2774.1,3.2078]
[1738735385635,0.00540531,2774.2,2773.9,1.1896]
[1738735389434,0.00540531,2774.2,2774.1,3.2078]
[1738735390038,0.00540531,2774.2,2774.1,8.2078]
[1738735390242,0.00540531,2774.2,2774.1,3.2078]
[1738735390846,0.00540531,2774.2,2773.9,1.1896]
[1738735392534,0.00540531,2774.2,2774.0,3.2078]
[1738735392945,0.00540531,2774.2,2773.9,0.2884]
[1738735393243,3.21320531,2774.2,2773.9,0.2884]
[1738735393638,3.21320531,2774.2,2773.7,4.65530531]
[1738735393639,3.07803565,2774.0,2773.7,1.44750531]
[1738735393839,3.21320531,2774.2,2773.7,1.44750531]
[1738735393840,0.00540531,2774.2,2773.7,1.44750531]
[1738735394039,0.00540531,2774.2,2774.1,3.2078]
[1738735394542,0.00540531,2774.2,2774.0,3.2078]
[1738735394743,0.00540531,2774.2,2773.8,3.0949]
[1738735394948,0.00540531,2774.2,2774.0,3.2078]
[1738735396137,0.00540531,2774.2,2774.0,4.109]
[1738735399147,0.00540531,2774.2,2774.0,4.3973]
[1738735400447,3.21320531,2774.2,2774.0,1.1895]
[1738735401346,0.00540531,2774.2,2774.0,1.1895]
[1738735401748,3.07803565,2774.1,2774.0,1.1895]
[1738735404049,6.28583565,2774.1,2774.0,1.1895]
[1738735404544,11.28583565,2774.1,2773.9,1.442]
[1738735404748,11.28583565,2774.1,2773.7,0.00540531]
[1738735404950,6.86245565,2773.8,2773.7,0.00540531]
[1738735405150,3.07803565,2773.2,2772.3,1.6396]
[1738735405957,3.07803565,2773.2,2772.3,1.9281]
[1738735406155,3.07803565,2773.2,2772.5,0.00540531]
[1738735406451,3.07803565,2772.6,2772.5,0.00540531]
[1738735406852,3.07803565,2772.6,2772.3,0.2885]
[1738735407046,3.2078,2772.4,2772.3,0.2885]
[1738735407450,3.2078,2772.4,2771.8,1.4431]
[1738735407451,8.2078,2772.4,2771.8,1.4431]
[1738735407652,6.28583565,2772.1,2771.8,1.4431]
[1738735408253,6.28583565,2772.1,2771.3,3.2078]
[1738735408557,3.07803565,2771.4,2771.3,0.5772]
[1738735409466,6.28583565,2771.4,2771.3,0.5772]
[1738735409952,11.28583565,2771.4,2771.3,0.2886]
[1738735410157,11.34363016,2771.4,2770.5,3.2078]
[1738735410351,6.28583565,2771.0,2770.5,3.2078]
[1738735410551,6.28583565,2771.0,2770.5,4.6515]
[1738735410953,3.07803565,2770.7,2770.5,4.6515]
[1738735411360,3.07803565,2770.7,2770.5,4.9402]
[1738735411559,3.07803565,2770.7,2770.5,3.4965]
[1738735412160,3.2078,2771.0,2770.5,4.1662]
[1738735413564,6.28583565,2771.6,2770.9,3.2078]
[1738735413759,6.28583565,2771.9,2770.9,3.2078]
[1738735413965,6.28583565,2771.9,2771.2,3.2078]
[1738735414161,3.2078,2771.6,2771.2,3.2078]
[1738735414460,3.2078,2771.6,2770.8,3.2078]
[1738735414867,6.28583565,2771.9,2771.1,3.2078]
[1738735415356,3.07803565,2771.6,2771.1,3.2078]
[1738735415559,3.07803565,2771.6,2770.7,1.6118]
[1738735415560,3.07803565,2771.3,2770.7,1.6118]
[1738735415759,6.28583565,2771.6,2771.0,3.2078]
[1738735415961,3.07803565,2771.6,2771.0,4.6513]
[1738735416562,3.07803565,2771.6,2771.0,1.4435]
[1738735416563,3.07803565,2771.3,2771.0,1.4435]
[1738735417156,3.07803565,2771.3,2770.7,3.2078]
[1738735418067,1.607,2771.2,2770.7,3.2078]
[1738735418468,3.07803565,2771.0,2770.7,3.2078]
[1738735418765,3.2078,2770.8,2770.5,0.9584]
[1738735419565,3.07803565,2770.7,2770.5,0.9584]
[1738735419766,0.57731,2770.5,2769.4,3.2078]
[1738735419962,3.07803565,2769.7,2769.4,3.2078]
[1738735420365,3.07803565,2769.7,2768.7,4.8354]
[1738735420366,3.07803565,2769.7,2768.9,3.2078]
[1738735420565,3.07803565,2769.7,2769.2,1.4444]
[1738735421363,0.00541546,2769.8,2769.2,1.4444]
[1738735421364,3.07803565,2769.4,2769.2,1.4444]
[1738735421666,3.07803565,2769.4,2768.9,3.2078]
[1738735422472,3.2078,2769.5,2768.9,3.2078]
[1738735422667,3.07803565,2769.7,2769.3,3.2078]
[1738735423267,0.00541546,2769.8,2769.3,3.2078]
[1738735423669,3.07803565,2770.6,2769.3,3.2078]
[1738735423670,3.07803565,2771.2,2769.7,3.2078]
[1738735423871,3.07803565,2771.2,2769.4,1.473]
[1738735423872,3.07803565,2771.2,2770.6,3.2078]
[1738735424170,3.07803565,2771.2,2770.7,1.5806]
[1738735424365,3.2078,2770.8,2769.8,1.6397]
[1738735424564,3.36277124,2770.7,2769.8,1.6397]
[1738735424975,0.00541546,2770.6,2770.0,0.00541546]
[1738735425167,0.00541546,2770.6,2770.1,3.2078]
[1738735425371,0.00541546,2770.6,2770.0,0.00541546]
[1738735425567,0.00541546,2770.6,2770.1,3.2078]
[1738735425771,0.00541546,2770.6,2770.0,0.00541546]
[1738735426272,0.00541546,2770.6,2770.0,3.21321546]
[1738735426471,0.00541546,2770.6,2770.5,3.2078]
[1738735426964,0.00541546,2770.6,2770.2,4.7966]
[1738735427564,0.00541546,2770.6,2770.5,3.2078]
[1738735428676,3.2078,2771.4,2770.5,8.2078]
[1738735428869,3.2078,2771.4,2770.8,3.2078]
[1738735429177,3.2078,2771.4,2770.5,3.2078]
[1738735429678,3.2078,2772.1,2771.3,3.2078]
[1738735429873,3.2078,2772.1,2770.4,1.476]
[1738735429874,3.2078,2772.1,2771.6,3.2078]
[1738735430371,3.21321546,2772.1,2771.6,0.00541546]
[1738735430671,3.2078,2771.8,2771.6,0.00541546]
[1738735430872,1.5843,2771.7,2771.6,0.00541546]
[1738735431270,6.5843,2771.7,2771.6,0.00541546]
[1738735431470,1.5843,2771.7,2771.6,0.00541546]
[1738735432381,0.00541546,2772.1,2771.6,0.00541546]
[1738735433274,0.00541546,2772.1,2771.7,3.2078]
[1738735434177,3.36277124,2773.1,2772.0,3.2078]
[1738735434474,3.2078,2773.4,2772.4,3.2078]
[1738735434678,3.2078,2773.4,2772.5,3.3237]
[1738735434878,3.2078,2773.4,2772.7,3.2078]
[1738735435175,4.95947124,2773.9,2772.7,3.2078]
[1738735435176,3.2078,2773.8,2772.7,3.2078]
[1738735435482,0.00541546,2773.3,2772.7,3.2078]
[1738735435874,0.00541546,2773.3,2773.0,0.00541546]
[1738735436075,0.00541546,2773.3,2773.1,3.2078]
[1738735436970,0.00541546,2773.3,2773.0,0.00541546]
[1738735437275,0.00541546,2773.3,2773.1,3.2078]
[1738735438077,0.00541546,2773.3,2773.1,8.2078]
[1738735438279,3.2078,2774.5,2773.1,8.2078]
[1738735438582,3.2078,2774.2,2773.5,3.2078]
[1738735439077,3.2078,2774.5,2773.8,3.2078]
[1738735439278,0.00541546,2774.1,2773.8,3.2078]
[1738735440281,0.00541546,2774.1,2773.5,3.2078]
[1738735440573,0.00541546,2774.1,2773.8,3.2078]
[1738735440781,0.00541546,2774.1,2773.6,1.6307]
[1738735441177,0.00541546,2774.1,2773.6,4.8385]
[1738735441976,3.2078,2773.8,2773.6,1.6307]
[1738735442182,3.2078,2773.8,2773.5,0.2884]
[1738735442384,1.5906,2773.7,2773.5,0.2884]
[1738735443275,3.2078,2773.8,2773.5,0.2884]
[1738735443473,3.2078,2773.6,2773.5,0.2884]
[1738735443674,0.57677,2773.1,2773.0,0.00541546]
[1738735443870,3.2078,2773.1,2773.0,0.00541546]
[1738735444273,3.2078,2773.7,2773.0,0.00541546]
[1738735445080,3.3681867,2774.1,2773.0,0.00541546]
[1738735445081,3.21321546,2774.1,2773.0,0.00541546]
[1738735445282,0.00541546,2774.1,2773.3,3.2078]
[1738735445487,0.00541546,2774.1,2773.4,6.5544]
[1738735445488,3.21321546,2774.1,2773.4,6.5544]
[1738735445782,17.2503,2775.4,2773.4,6.5544]
[1738735445783,3.2078,2775.5,2774.0,3.2078]
[1738735446084,6.57057124,2775.7,2774.3,3.2078]
[1738735446277,6.57057124,2775.7,2774.4,6.5544]
[1738735446678,3.2078,2775.4,2774.4,3.3466]
[1738735447075,3.2078,2775.1,2774.6,0.0054055]
[1738735447280,0.0054055,2775.2,2774.6,0.0054055]
[1738735447980,0.0054055,2775.2,2774.6,3.2132055]
[1738735448185,0.0054055,2775.2,2774.6,0.0054055]
[1738735448779,0.0054055,2775.2,2774.7,3.2078]
[1738735449187,0.0054055,2775.2,2774.6,0.0054055]
[1738735449386,0.0054055,2775.2,2774.7,3.2078]
[1738735449885,0.0054055,2775.2,2774.6,0.0054055]
[1738735450090,3.2132055,2775.2,2774.6,0.0054055]
[1738735450390,0.0054055,2775.2,2774.6,0.0054055]
[1738735450986,3.2132055,2775.2,2774.6,0.0054055]
[1738735451190,0.0054055,2775.2,2774.6,0.0054055]
[1738735453489,6.57057124,2774.9,2774.6,0.0054055]
[1738735453791,6.57057124,2774.9,2773.5,3.2078]
[1738735454088,3.2078,2774.4,2773.5,3.2078]
[1738735454289,3.2078,2774.4,2773.3,5.0826]